[Event "*** Titled Tuesday Blitz"]
[Site "Chess.com"]
[Date "2020.03.03"]
[Round "9"]
[White "MartinMatthiesen"]
[Black "norwaytoadog"]
[Result "1-0"]
[WhiteElo "2532"]
[BlackElo "2266"]
[TimeControl "180+1"]
[EndTime "10:43:40 PST"]
[Termination "MartinMatthiesen won on time"]

1. e4 {[%clk 0:03:00.9]} 1... e5 {[%clk 0:02:59.7]} 2. Nc3 {[%clk 0:02:58.1]}
2... Nf6 {[%clk 0:02:59.1]} 3. Bc4 {[%clk 0:02:57.5]} 3... c6 {[%clk 0:02:59.1]}
4. Nf3 {[%clk 0:02:55.9]} 4... d6 {[%clk 0:02:56.8]} 5. a4 {[%clk 0:02:45.3]}
5... Be7 {[%clk 0:02:56.5]} 6. O-O {[%clk 0:02:44.2]} 6... O-O {[%clk
0:02:56.8]} 7. d4 {[%clk 0:02:44.1]} 7... Qc7 {[%clk 0:02:56.4]} 8. Re1 {[%clk
0:02:43]} 8... Nbd7 {[%clk 0:02:56.3]} 9. Nh4 {[%clk 0:02:36.2]} 9... Re8 {[%clk
0:02:51.2]} 10. Nf5 {[%clk 0:02:33]} 10... Bf8 {[%clk 0:02:51.5]} 11. Ba2 {[%clk
0:02:24.8]} 11... a5 {[%clk 0:02:50.4]} 12. Be3 {[%clk 0:02:18.1]} 12... Nb6
{[%clk 0:02:36.1]} 13. Qf3 {[%clk 0:02:12.3]} 13... Be6 {[%clk 0:02:06.7]} 14.
Bg5 {[%clk 0:01:59.5]} 14... Nbd7 {[%clk 0:01:54.3]} 15. Rad1 {[%clk 0:01:22.7]}
15... h6 {[%clk 0:01:37]} 16. Nxh6+ {[%clk 0:01:16.3]} 16... gxh6 {[%clk
0:01:36.6]} 17. Bxf6 {[%clk 0:01:16.4]} 17... Nxf6 {[%clk 0:01:36.7]} 18. Qxf6
{[%clk 0:01:15.6]} 18... Bg7 {[%clk 0:01:36.9]} 19. Qh4 {[%clk 0:01:10.5]} 19...
exd4 {[%clk 0:01:36.6]} 20. Bxe6 {[%clk 0:01:04.7]} 20... fxe6 {[%clk
0:01:11.1]} 21. Ne2 {[%clk 0:01:02.6]} 21... c5 {[%clk 0:01:05.2]} 22. Nf4
{[%clk 0:00:59.7]} 22... Qe7 {[%clk 0:01:00.8]} 23. Qh3 {[%clk 0:00:53.1]} 23...
Qf6 {[%clk 0:00:45.6]} 24. Nh5 {[%clk 0:00:47.4]} 24... Qf7 {[%clk 0:00:37]} 25.
Rd3 {[%clk 0:00:45.8]} 25... Kh7 {[%clk 0:00:35.6]} 26. Rf3 {[%clk 0:00:38.8]}
26... Qe7 {[%clk 0:00:31.5]} 27. Rg3 {[%clk 0:00:30.1]} 27... Rg8 {[%clk
0:00:29.8]} 28. f4 {[%clk 0:00:29.1]} 28... Raf8 {[%clk 0:00:28.8]} 29. Rf1
{[%clk 0:00:22.9]} 29... Bf6 {[%clk 0:00:24.2]} 30. Rff3 {[%clk 0:00:19.3]}
30... Bh4 {[%clk 0:00:18.2]} 31. Rg4 {[%clk 0:00:18]} 31... Rxg4 {[%clk
0:00:15.6]} 32. Qxg4 {[%clk 0:00:18.3]} 32... Rg8 {[%clk 0:00:15.6]} 33. Qh3
{[%clk 0:00:17.8]} 33... Bf6 {[%clk 0:00:13.7]} 34. g4 {[%clk 0:00:13.6]} 34...
Qf7 {[%clk 0:00:08.7]} 35. Kh1 {[%clk 0:00:11.4]} 35... Qg6 {[%clk 0:00:07.2]}
36. g5 {[%clk 0:00:11.1]} 1-0

[Event "*** Titled Tuesday Blitz"]
[Site "Chess.com"]
[Date "2020.03.03"]
[Round "9"]
[White "TreinadorBR"]
[Black "HouseOfDurin"]
[Result "1-0"]
[WhiteElo "2416"]
[BlackElo "2085"]
[TimeControl "180+1"]
[EndTime "10:43:41 PST"]
[Termination "TreinadorBR won on time"]

1. e4 {[%clk 0:03:00.9]} 1... c5 {[%clk 0:03:00.3]} 2. Nf3 {[%clk 0:03:01.1]}
2... Nc6 {[%clk 0:03:00.8]} 3. d4 {[%clk 0:03:02]} 3... cxd4 {[%clk 0:03:01.3]}
4. Nxd4 {[%clk 0:03:02.9]} 4... e5 {[%clk 0:03:01.9]} 5. Nb5 {[%clk 0:03:02.5]}
5... d6 {[%clk 0:03:02.3]} 6. N1c3 {[%clk 0:03:01.7]} 6... a6 {[%clk 0:03:02.5]}
7. Na3 {[%clk 0:03:02.5]} 7... b5 {[%clk 0:03:03]} 8. Nd5 {[%clk 0:03:03.3]}
8... Nf6 {[%clk 0:03:02.8]} 9. Nxf6+ {[%clk 0:02:51.5]} 9... Qxf6 {[%clk
0:03:01.6]} 10. c4 {[%clk 0:02:52.4]} 10... b4 {[%clk 0:03:00.8]} 11. Nc2 {[%clk
0:02:52.1]} 11... a5 {[%clk 0:03:00.1]} 12. Ne3 {[%clk 0:02:51.8]} 12... Be6
{[%clk 0:02:58.5]} 13. Nd5 {[%clk 0:02:47.6]} 13... Bxd5 {[%clk 0:02:58.2]} 14.
cxd5 {[%clk 0:02:48.5]} 14... Nd4 {[%clk 0:02:22.5]} 15. Be3 {[%clk 0:02:48.6]}
15... Be7 {[%clk 0:02:17.3]} 16. Bxd4 {[%clk 0:02:39.2]} 16... exd4 {[%clk
0:02:18.2]} 17. Bb5+ {[%clk 0:02:39.6]} 17... Kf8 {[%clk 0:02:18.4]} 18. O-O
{[%clk 0:02:40.5]} 18... Qe5 {[%clk 0:01:49]} 19. Qd3 {[%clk 0:02:36.2]} 19...
g5 {[%clk 0:01:42.8]} 20. Rac1 {[%clk 0:02:28.3]} 20... Kg7 {[%clk 0:01:36]} 21.
Bd7 {[%clk 0:02:25.6]} 21... Ra7 {[%clk 0:01:22.2]} 22. Bf5 {[%clk 0:02:20.9]}
22... h5 {[%clk 0:01:09.1]} 23. Rc4 {[%clk 0:02:15.9]} 23... Bf6 {[%clk
0:01:05.2]} 24. Rfc1 {[%clk 0:02:14.9]} 24... Rb8 {[%clk 0:01:00.5]} 25. Qf3
{[%clk 0:02:09.3]} 25... g4 {[%clk 0:00:57.5]} 26. Qd3 {[%clk 0:02:06.9]} 26...
a4 {[%clk 0:00:47.3]} 27. g3 {[%clk 0:01:53.1]} 27... Rab7 {[%clk 0:00:44.2]}
28. Rc7 {[%clk 0:01:45.2]} 28... Bd8 {[%clk 0:00:35.5]} 29. R7c6 {[%clk
0:01:38.9]} 29... Bb6 {[%clk 0:00:32.7]} 30. R1c4 {[%clk 0:01:28.9]} 30... Bc5
{[%clk 0:00:32.4]} 31. Kg2 {[%clk 0:01:26.9]} 31... a3 {[%clk 0:00:30.6]} 32. b3
{[%clk 0:01:24.3]} 32... Rh8 {[%clk 0:00:28.7]} 33. Qe2 {[%clk 0:01:08.7]} 33...
Rh6 {[%clk 0:00:17.6]} 34. Qd2 {[%clk 0:01:07.4]} 34... f6 {[%clk 0:00:13.9]}
35. Rc8 {[%clk 0:00:57.6]} 35... Qe7 {[%clk 0:00:12.2]} 36. Qd3 {[%clk 0:00:53]}
36... Rh8 {[%clk 0:00:11.2]} 37. Rc6 {[%clk 0:00:49.7]} 37... Rhb8 {[%clk
0:00:06.2]} 38. Qd2 {[%clk 0:00:49.1]} 38... Rb6 {[%clk 0:00:04.5]} 39. Rxb6
{[%clk 0:00:43.6]} 39... Rxb6 {[%clk 0:00:05.4]} 40. f3 {[%clk 0:00:37.1]} 40...
gxf3+ {[%clk 0:00:04]} 41. Kxf3 {[%clk 0:00:38]} 41... Rb8 {[%clk 0:00:04.1]}
42. h3 {[%clk 0:00:36.1]} 42... Rh8 {[%clk 0:00:03.1]} 43. Rc2 {[%clk 0:00:31]}
43... Qe5 {[%clk 0:00:02.4]} 44. Qf4 {[%clk 0:00:27.8]} 44... Qxf4+ {[%clk
0:00:01.9]} 45. gxf4 {[%clk 0:00:28.3]} 1-0

[Event "*** Titled Tuesday Blitz"]
[Site "Chess.com"]
[Date "2020.03.03"]
[Round "9"]
[White "GMSrinath"]
[Black "Atakishiyev04"]
[Result "1-0"]
[WhiteElo "2873"]
[BlackElo "2696"]
[TimeControl "180+1"]
[EndTime "10:43:43 PST"]
[Termination "GMSrinath won by resignation"]

1. c4 {[%clk 0:02:51.8]} 1... Nf6 {[%clk 0:02:59.5]} 2. Nf3 {[%clk 0:02:50.9]}
2... g6 {[%clk 0:02:59.1]} 3. b3 {[%clk 0:02:51.6]} 3... Bg7 {[%clk 0:02:58.8]}
4. Bb2 {[%clk 0:02:52.3]} 4... O-O {[%clk 0:02:59.4]} 5. g3 {[%clk 0:02:53]}
5... c6 {[%clk 0:02:57.8]} 6. Bg2 {[%clk 0:02:53]} 6... d5 {[%clk 0:02:58]} 7.
d3 {[%clk 0:02:52.9]} 7... Nbd7 {[%clk 0:02:50.3]} 8. O-O {[%clk 0:02:53.4]}
8... a6 {[%clk 0:02:45.4]} 9. Nc3 {[%clk 0:02:51.6]} 9... b5 {[%clk 0:02:40.3]}
10. cxd5 {[%clk 0:02:51.1]} 10... cxd5 {[%clk 0:02:31.7]} 11. b4 {[%clk
0:02:49]} 11... Bb7 {[%clk 0:02:29.9]} 12. a4 {[%clk 0:02:49]} 12... bxa4 {[%clk
0:02:27.7]} 13. Nxa4 {[%clk 0:02:49.9]} 13... Rc8 {[%clk 0:02:26.6]} 14. Ne5
{[%clk 0:02:39.2]} 14... Qc7 {[%clk 0:02:14.6]} 15. Nxd7 {[%clk 0:02:37.5]}
15... Nxd7 {[%clk 0:02:15.5]} 16. Bxg7 {[%clk 0:02:37.1]} 16... Kxg7 {[%clk
0:02:16.4]} 17. Qd2 {[%clk 0:02:34.1]} 17... Qd6 {[%clk 0:02:14.8]} 18. Rfb1
{[%clk 0:02:24.8]} 18... Bc6 {[%clk 0:02:02]} 19. Nc3 {[%clk 0:02:10.8]} 19...
Bb7 {[%clk 0:01:58.3]} 20. b5 {[%clk 0:02:10.7]} 20... axb5 {[%clk 0:01:49.7]}
21. Nxb5 {[%clk 0:02:11.6]} 21... Qf6 {[%clk 0:01:48.5]} 22. Ra7 {[%clk
0:02:06.2]} 22... Bc6 {[%clk 0:01:45.4]} 23. Bxd5 {[%clk 0:01:23.7]} 23... Bxd5
{[%clk 0:01:25.6]} 24. Rxd7 {[%clk 0:01:22.6]} 24... Bc6 {[%clk 0:01:24]} 25.
Ra7 {[%clk 0:01:21.7]} 25... h5 {[%clk 0:01:19.6]} 26. Ra6 {[%clk 0:01:11.2]}
26... Rb8 {[%clk 0:00:38.6]} 27. Rc1 {[%clk 0:01:02.1]} 27... Rxb5 {[%clk
0:00:32.3]} 28. Raxc6 {[%clk 0:01:01.3]} 28... Qe5 {[%clk 0:00:31.2]} 29. Qc3
{[%clk 0:00:59.9]} 29... Qxc3 {[%clk 0:00:31.2]} 30. R1xc3 {[%clk 0:01:00.8]}
30... e6 {[%clk 0:00:31.4]} 31. Kg2 {[%clk 0:00:59.1]} 31... Rb7 {[%clk
0:00:30.9]} 32. Rc2 {[%clk 0:00:55.3]} 32... Rfb8 {[%clk 0:00:29.9]} 33. h4
{[%clk 0:00:55.1]} 33... Kf6 {[%clk 0:00:29.6]} 34. Kf3 {[%clk 0:00:55.5]} 34...
Rb2 {[%clk 0:00:27.2]} 35. R2c4 {[%clk 0:00:51.3]} 35... R2b4 {[%clk 0:00:26]}
36. Rc7 {[%clk 0:00:48.7]} 36... Rxc4 {[%clk 0:00:24.2]} 37. dxc4 {[%clk
0:00:49.6]} 37... Rb2 {[%clk 0:00:21]} 38. c5 {[%clk 0:00:48.6]} 38... Rc2
{[%clk 0:00:19.1]} 39. c6 {[%clk 0:00:48.9]} 39... Rc4 {[%clk 0:00:18.3]} 40.
Ke3 {[%clk 0:00:48.9]} 40... Rc1 {[%clk 0:00:18]} 41. Kd4 {[%clk 0:00:41.4]}
41... e5+ {[%clk 0:00:13.7]} 42. Kd5 {[%clk 0:00:39.4]} 42... Rd1+ {[%clk
0:00:13.9]} 43. Kc5 {[%clk 0:00:39.4]} 43... Ke6 {[%clk 0:00:14.8]} 44. Rb7
{[%clk 0:00:37.1]} 44... Rc1+ {[%clk 0:00:15]} 45. Kb6 {[%clk 0:00:37.7]} 45...
Kd6 {[%clk 0:00:11.9]} 46. Rd7+ {[%clk 0:00:36.6]} 46... Ke6 {[%clk 0:00:12.2]}
47. Rd2 {[%clk 0:00:34.5]} 47... f5 {[%clk 0:00:11.5]} 48. c7 {[%clk 0:00:34]}
48... e4 {[%clk 0:00:10.6]} 49. Kb7 {[%clk 0:00:33.6]} 49... Rb1+ {[%clk
0:00:10.3]} 50. Kc8 {[%clk 0:00:33.1]} 50... Rc1 {[%clk 0:00:10.5]} 51. Kd8
{[%clk 0:00:33.3]} 1-0

[Event "*** Titled Tuesday Blitz"]
[Site "Chess.com"]
[Date "2020.03.03"]
[Round "9"]
[White "vladislavkovalev"]
[Black "Alexander_Moskalenko"]
[Result "1-0"]
[WhiteElo "2908"]
[BlackElo "2843"]
[TimeControl "180+1"]
[EndTime "10:43:45 PST"]
[Termination "vladislavkovalev won by checkmate"]

1. e4 {[%clk 0:03:00.9]} 1... e6 {[%clk 0:03:00.9]} 2. d4 {[%clk 0:03:00.6]}
2... d5 {[%clk 0:03:01.8]} 3. Nd2 {[%clk 0:03:01.2]} 3... c5 {[%clk 0:03:01.6]}
4. Ngf3 {[%clk 0:03:01.6]} 4... cxd4 {[%clk 0:02:59.3]} 5. Nxd4 {[%clk
0:03:02.5]} 5... Nc6 {[%clk 0:02:58.1]} 6. Bb5 {[%clk 0:03:02.6]} 6... Bd7
{[%clk 0:02:57.2]} 7. Nxc6 {[%clk 0:03:03]} 7... bxc6 {[%clk 0:02:58.1]} 8. Bd3
{[%clk 0:03:03.6]} 8... Bd6 {[%clk 0:02:52.4]} 9. Qe2 {[%clk 0:03:04.1]} 9...
Ne7 {[%clk 0:02:49.8]} 10. O-O {[%clk 0:03:00.1]} 10... O-O {[%clk 0:02:48.3]}
11. e5 {[%clk 0:02:45.4]} 11... Bc7 {[%clk 0:02:48.1]} 12. Nf3 {[%clk
0:02:45.9]} 12... c5 {[%clk 0:02:36.1]} 13. b3 {[%clk 0:02:20.4]} 13... Ng6
{[%clk 0:02:31]} 14. Ng5 {[%clk 0:01:50.6]} 14... Qe8 {[%clk 0:02:22.8]} 15. f4
{[%clk 0:01:41.3]} 15... f5 {[%clk 0:02:14]} 16. c4 {[%clk 0:01:21.8]} 16... d4
{[%clk 0:02:04.8]} 17. Ba3 {[%clk 0:01:20.3]} 17... Bb6 {[%clk 0:02:05]} 18. b4
{[%clk 0:01:20.7]} 18... cxb4 {[%clk 0:01:48.3]} 19. Bxb4 {[%clk 0:01:21.6]}
19... h6 {[%clk 0:01:49.2]} 20. Nh3 {[%clk 0:01:11.1]} 20... Rf7 {[%clk
0:01:49.2]} 21. Bd6 {[%clk 0:01:03.9]} 21... Rc8 {[%clk 0:01:45.9]} 22. Rfc1
{[%clk 0:00:59.6]} 22... Ba5 {[%clk 0:01:36.4]} 23. Rab1 {[%clk 0:00:55.8]}
23... Bc3 {[%clk 0:01:37.3]} 24. c5 {[%clk 0:00:50.1]} 24... Bc6 {[%clk
0:01:38.2]} 25. Ba6 {[%clk 0:00:38.2]} 25... Bd5 {[%clk 0:01:39.1]} 26. Bxc8
{[%clk 0:00:37.2]} 26... Kh7 {[%clk 0:01:27.6]} 27. Ba6 {[%clk 0:00:32.2]} 27...
Nh4 {[%clk 0:01:27.1]} 28. Bc4 {[%clk 0:00:24.6]} 28... Bxg2 {[%clk 0:01:25.9]}
29. Qf2 {[%clk 0:00:22.8]} 29... Bxh3 {[%clk 0:00:42.7]} 30. Qxh4 {[%clk
0:00:22.7]} 30... Bg4 {[%clk 0:00:43.3]} 31. Rb8 {[%clk 0:00:20.2]} 31... Qc6
{[%clk 0:00:42.1]} 32. Bxe6 {[%clk 0:00:16.8]} 32... Bd2 {[%clk 0:00:42.6]} 33.
Rf1 {[%clk 0:00:07.5]} 33... Be3+ {[%clk 0:00:43.1]} 34. Rf2 {[%clk 0:00:08]}
34... Rb7 {[%clk 0:00:36]} 35. Bg8+ {[%clk 0:00:06.1]} 35... Kg6 {[%clk
0:00:35.7]} 36. Rxb7 {[%clk 0:00:04.2]} 36... Qxb7 {[%clk 0:00:36.6]} 37. h3
{[%clk 0:00:01.1]} 37... Qb1+ {[%clk 0:00:28.7]} 38. Kh2 {[%clk 0:00:01.7]}
38... Qe1 {[%clk 0:00:15.8]} 39. hxg4 {[%clk 0:00:01.8]} 39... Bxf2 {[%clk
0:00:14.5]} 40. Qh5# {[%clk 0:00:02]} 1-0

[Event "*** Titled Tuesday Blitz"]
[Site "Chess.com"]
[Date "2020.03.03"]
[Round "9"]
[White "Leonid_Starozhilov"]
[Black "vovachesss"]
[Result "1-0"]
[WhiteElo "2719"]
[BlackElo "2573"]
[TimeControl "180+1"]
[EndTime "10:43:51 PST"]
[Termination "Leonid_Starozhilov won on time"]

1. b3 {[%clk 0:03:00.9]} 1... e5 {[%clk 0:02:59.6]} 2. Bb2 {[%clk 0:03:01.3]}
2... Nc6 {[%clk 0:03:00.2]} 3. e3 {[%clk 0:03:01.9]} 3... Bb4 {[%clk 0:02:58.8]}
4. Bb5 {[%clk 0:03:01.7]} 4... Nge7 {[%clk 0:02:58.3]} 5. Ne2 {[%clk 0:02:41.8]}
5... O-O {[%clk 0:02:57.6]} 6. O-O {[%clk 0:02:39.7]} 6... d6 {[%clk 0:02:57.1]}
7. d4 {[%clk 0:02:34.8]} 7... exd4 {[%clk 0:02:54.6]} 8. Nxd4 {[%clk 0:02:27.7]}
8... Bc5 {[%clk 0:02:44.1]} 9. Nxc6 {[%clk 0:02:07.8]} 9... Nxc6 {[%clk
0:02:43.1]} 10. Nd2 {[%clk 0:01:59.1]} 10... Qg5 {[%clk 0:02:34.3]} 11. Ne4
{[%clk 0:01:52.4]} 11... Qg6 {[%clk 0:02:32.5]} 12. Bd3 {[%clk 0:01:25.8]} 12...
Bf5 {[%clk 0:02:26.9]} 13. Qf3 {[%clk 0:00:52.8]} 13... Ne7 {[%clk 0:01:35.7]}
14. Nxc5 {[%clk 0:00:29.8]} 14... dxc5 {[%clk 0:01:35.5]} 15. e4 {[%clk
0:00:30.4]} 15... Be6 {[%clk 0:01:30.9]} 16. Qe3 {[%clk 0:00:17.6]} 16... b6
{[%clk 0:01:12.6]} 17. Rae1 {[%clk 0:00:17.6]} 17... Nc6 {[%clk 0:01:08.3]} 18.
Qf4 {[%clk 0:00:11.9]} 18... Rac8 {[%clk 0:00:32.8]} 19. Re3 {[%clk 0:00:11.6]}
19... Nd4 {[%clk 0:00:26.8]} 20. Rg3 {[%clk 0:00:08.6]} 20... Qh5 {[%clk
0:00:27]} 21. Bxd4 {[%clk 0:00:08.3]} 21... cxd4 {[%clk 0:00:27.1]} 22. e5
{[%clk 0:00:08]} 22... c5 {[%clk 0:00:26.7]} 23. Qf6 {[%clk 0:00:07.6]} 23... g6
{[%clk 0:00:20]} 24. f4 {[%clk 0:00:08.1]} 24... Bd5 {[%clk 0:00:10.1]} 25. f5
{[%clk 0:00:07.8]} 25... Rc6 {[%clk 0:00:08.9]} 26. Qe7 {[%clk 0:00:06.1]} 26...
Qh6 {[%clk 0:00:07.5]} 27. e6 {[%clk 0:00:06.1]} 27... Bxe6 {[%clk 0:00:04.3]}
28. fxe6 {[%clk 0:00:06.2]} 28... Rxe6 {[%clk 0:00:04.8]} 29. Qc7 {[%clk
0:00:06.5]} 29... Qg7 {[%clk 0:00:03.9]} 30. Qf4 {[%clk 0:00:06.3]} 30... a5
{[%clk 0:00:04.1]} 31. h4 {[%clk 0:00:06.6]} 31... Rfe8 {[%clk 0:00:04.1]} 32.
h5 {[%clk 0:00:06.9]} 32... Re3 {[%clk 0:00:04]} 33. h6 {[%clk 0:00:06.9]} 33...
Qf8 {[%clk 0:00:03.8]} 34. Rgf3 {[%clk 0:00:06.8]} 34... Rxf3 {[%clk 0:00:03.2]}
35. Rxf3 {[%clk 0:00:07.3]} 35... Re7 {[%clk 0:00:02.8]} 36. Bc4 {[%clk
0:00:07.5]} 1-0

[Event "*** Titled Tuesday Blitz"]
[Site "Chess.com"]
[Date "2020.03.03"]
[Round "9"]
[White "riconaipe"]
[Black "VALPARAISO37"]
[Result "1/2-1/2"]
[WhiteElo "2571"]
[BlackElo "2412"]
[TimeControl "180+1"]
[EndTime "10:43:55 PST"]
[Termination "Game drawn - insufficient material"]

1. e4 {[%clk 0:03:00.9]} 1... e5 {[%clk 0:02:57.8]} 2. Nf3 {[%clk 0:03:01]} 2...
Nc6 {[%clk 0:02:57.6]} 3. Bc4 {[%clk 0:03:00.6]} 3... Bc5 {[%clk 0:02:55.9]} 4.
O-O {[%clk 0:03:00.2]} 4... d6 {[%clk 0:02:54.4]} 5. c3 {[%clk 0:03:00.5]} 5...
Nf6 {[%clk 0:02:45.7]} 6. d4 {[%clk 0:02:59.6]} 6... Bb6 {[%clk 0:02:44.3]} 7.
dxe5 {[%clk 0:02:58.9]} 7... dxe5 {[%clk 0:02:44.4]} 8. Qxd8+ {[%clk 0:02:58]}
8... Nxd8 {[%clk 0:02:44.4]} 9. Nxe5 {[%clk 0:02:56.7]} 9... Nxe4 {[%clk
0:02:44.7]} 10. Nd2 {[%clk 0:02:56.1]} 10... Nd6 {[%clk 0:02:42.7]} 11. Ndf3
{[%clk 0:02:54.2]} 11... O-O {[%clk 0:02:40.2]} 12. Bb3 {[%clk 0:02:50.1]} 12...
Be6 {[%clk 0:02:37.4]} 13. Bf4 {[%clk 0:02:47.4]} 13... Bxb3 {[%clk 0:02:31.9]}
14. axb3 {[%clk 0:02:44.3]} 14... Ne6 {[%clk 0:02:32.6]} 15. Bg3 {[%clk
0:02:44.1]} 15... Rad8 {[%clk 0:02:27.7]} 16. Rfd1 {[%clk 0:02:42.4]} 16... f6
{[%clk 0:02:24.5]} 17. Nc4 {[%clk 0:02:40.1]} 17... Nxc4 {[%clk 0:02:19.1]} 18.
bxc4 {[%clk 0:02:41]} 18... g5 {[%clk 0:02:13.3]} 19. b4 {[%clk 0:02:39.2]}
19... c6 {[%clk 0:02:00.9]} 20. c5 {[%clk 0:02:36]} 20... Bc7 {[%clk 0:02:00.5]}
21. Bd6 {[%clk 0:02:36.4]} 21... Bxd6 {[%clk 0:01:59]} 22. cxd6 {[%clk
0:02:36.6]} 22... a6 {[%clk 0:01:58.9]} 23. c4 {[%clk 0:02:36.2]} 23... Kf7
{[%clk 0:01:52.5]} 24. c5 {[%clk 0:02:36.4]} 24... h5 {[%clk 0:01:44]} 25. h3
{[%clk 0:02:36.3]} 25... f5 {[%clk 0:01:37.4]} 26. Nd4 {[%clk 0:02:29.9]} 26...
Nxd4 {[%clk 0:01:33.9]} 27. Rxd4 {[%clk 0:02:30.8]} 27... Rfe8 {[%clk
0:01:33.8]} 28. g4 {[%clk 0:02:30.1]} 28... hxg4 {[%clk 0:01:32.6]} 29. hxg4
{[%clk 0:02:31]} 29... f4 {[%clk 0:01:32.9]} 30. Kg2 {[%clk 0:02:31.1]} 30...
Kg6 {[%clk 0:01:32.2]} 31. Rh1 {[%clk 0:02:30.4]} 31... Re5 {[%clk 0:01:29.1]}
32. Kf3 {[%clk 0:02:24.5]} 32... a5 {[%clk 0:01:29]} 33. Rb1 {[%clk 0:02:15.2]}
33... axb4 {[%clk 0:01:25.1]} 34. Rbxb4 {[%clk 0:02:16.1]} 34... Rd7 {[%clk
0:01:25.1]} 35. Rbc4 {[%clk 0:02:13.5]} 35... Kf6 {[%clk 0:01:23.5]} 36. Re4
{[%clk 0:02:13.5]} 36... Ke6 {[%clk 0:01:21.8]} 37. Rb4 {[%clk 0:02:11.6]} 37...
Kd5 {[%clk 0:01:20.3]} 38. Rxe5+ {[%clk 0:02:01.9]} 38... Kxe5 {[%clk 0:01:20]}
39. Re4+ {[%clk 0:02:01.7]} 39... Kf6 {[%clk 0:01:20.2]} 40. Ke2 {[%clk
0:01:59.8]} 40... b5 {[%clk 0:01:14]} 41. cxb6 {[%clk 0:01:50.3]} 41... Rxd6
{[%clk 0:01:13.4]} 42. b7 {[%clk 0:01:50.7]} 42... Rd8 {[%clk 0:01:12.5]} 43.
Rb4 {[%clk 0:01:51.1]} 43... Rb8 {[%clk 0:01:12.4]} 44. Kd3 {[%clk 0:01:51.3]}
44... Ke6 {[%clk 0:01:12.8]} 45. Ke4 {[%clk 0:01:50.7]} 45... c5 {[%clk
0:01:09.1]} 46. Rb6+ {[%clk 0:01:50.4]} 46... Kd7 {[%clk 0:01:07.2]} 47. Kd5
{[%clk 0:01:50.6]} 47... Kc7 {[%clk 0:01:04.9]} 48. Kxc5 {[%clk 0:01:50.9]}
48... Rxb7 {[%clk 0:01:05.4]} 49. Rxb7+ {[%clk 0:01:50.8]} 49... Kxb7 {[%clk
0:01:05.9]} 50. Kd5 {[%clk 0:01:48.9]} 50... Kc7 {[%clk 0:01:05.4]} 51. Ke5
{[%clk 0:01:48.9]} 51... Kc6 {[%clk 0:01:03.9]} 52. f3 {[%clk 0:01:43.3]} 52...
Kc5 {[%clk 0:01:02.9]} 53. Kf5 {[%clk 0:01:43.3]} 53... Kd4 {[%clk 0:01:03]} 54.
Kxg5 {[%clk 0:01:42.5]} 54... Ke3 {[%clk 0:01:03.2]} 55. Kh4 {[%clk 0:01:36.3]}
55... Kxf3 {[%clk 0:01:03.2]} 56. g5 {[%clk 0:01:36.7]} 56... Ke2 {[%clk
0:01:01.8]} 57. g6 {[%clk 0:01:36.8]} 57... f3 {[%clk 0:01:02.3]} 58. g7 {[%clk
0:01:37.7]} 58... f2 {[%clk 0:01:02.7]} 59. g8=Q {[%clk 0:01:38.6]} 59... f1=Q
{[%clk 0:01:02.8]} 60. Qa2+ {[%clk 0:01:36.1]} 60... Kf3 {[%clk 0:01:01.4]} 61.
Qa8+ {[%clk 0:01:32.1]} 61... Ke2 {[%clk 0:01:00.5]} 62. Qa6+ {[%clk 0:01:31.6]}
62... Kf2 {[%clk 0:01:00.6]} 63. Qb6+ {[%clk 0:01:31.1]} 63... Ke2 {[%clk
0:01:00.3]} 64. Qb5+ {[%clk 0:01:31.4]} 64... Kf2 {[%clk 0:01:00.5]} 65. Qc5+
{[%clk 0:01:31.8]} 65... Ke2 {[%clk 0:01:00.9]} 66. Qc4+ {[%clk 0:01:31.8]}
66... Kf2 {[%clk 0:01:01.1]} 67. Qd4+ {[%clk 0:01:32]} 67... Ke2 {[%clk
0:01:01.4]} 68. Qe4+ {[%clk 0:01:26.2]} 68... Kf2 {[%clk 0:01:00.6]} 69. Qd4+
{[%clk 0:01:03.9]} 69... Ke2 {[%clk 0:00:59.1]} 70. Qb2+ {[%clk 0:01:04.3]}
70... Kf3 {[%clk 0:00:58.8]} 71. Qc3+ {[%clk 0:01:01.3]} 71... Ke2 {[%clk
0:00:57.9]} 72. Qc2+ {[%clk 0:01:01.5]} 72... Kf3 {[%clk 0:00:57.8]} 73. Qc6+
{[%clk 0:00:58]} 73... Ke2 {[%clk 0:00:57.7]} 74. Kg3 {[%clk 0:00:57.9]} 74...
Qg1+ {[%clk 0:00:56.2]} 75. Kf4 {[%clk 0:00:57.3]} 75... Qh2+ {[%clk 0:00:55.2]}
76. Kf5 {[%clk 0:00:56.3]} 76... Qh5+ {[%clk 0:00:53.7]} 77. Ke6 {[%clk
0:00:56.4]} 77... Qg6+ {[%clk 0:00:53]} 78. Kd7 {[%clk 0:00:57.3]} 78... Qf7+
{[%clk 0:00:52.3]} 79. Kc8 {[%clk 0:00:57.1]} 79... Qf5+ {[%clk 0:00:50.7]} 80.
Kb7 {[%clk 0:00:56.8]} 80... Qb1+ {[%clk 0:00:49.9]} 81. Kc7 {[%clk 0:00:56.2]}
81... Qd3 {[%clk 0:00:49.4]} 82. Qg2+ {[%clk 0:00:55.6]} 82... Ke3 {[%clk
0:00:49.6]} 83. Qg3+ {[%clk 0:00:55.4]} 83... Ke4 {[%clk 0:00:49.6]} 84. Qg4+
{[%clk 0:00:55.7]} 84... Ke3 {[%clk 0:00:49.7]} 85. Qg3+ {[%clk 0:00:55.8]}
85... Ke4 {[%clk 0:00:50.1]} 86. Qg2+ {[%clk 0:00:55.4]} 86... Ke3 {[%clk
0:00:50.2]} 87. Kc6 {[%clk 0:00:55.5]} 87... Qe4+ {[%clk 0:00:48.9]} 88. Qxe4+
{[%clk 0:00:55.1]} 88... Kxe4 {[%clk 0:00:49.5]} 1/2-1/2